[Event "Bijnor Open 2024"]
[Site "Bijnor"]
[Date "2024.03.21"]
[Round "9.5"]
[White "Sai Agni Jeevitesh, J."]
[Black "Sanyam Srivastava"]
[Result "1-0"]
[ECO "E09"]
[WhiteElo "2285"]
[BlackElo "1686"]
[Annotator "TA"]
[PlyCount "121"]
[EventDate "2024.03.17"]
[EventCountry "IND"]
[SourceTitle "playchess.com"]
[Source "ChessBase"]
[SourceQuality "1"]
[TimeControl "5400+30"]

{[%evp 30,121,65,68,64,52,67,68,69,61,71,62,70,51,87,28,24,0,0,0,11,-10,28,0,30,33,34,28,53,47,41,27,34,41,26,33,51,51,50,50,63,41,62,47,72,76,92,92,86,86,252,253,311,125,127,93,106,105,131,16,31,48,129,121,113,113,484,505,484,484,397,222,901,378,694,581,2018,1976,1538,880,750,700,629,819,923,865,826,827,768,715,29987,1951,29995,29996]} 1. Nf3 {[%emt 0:00:48]} Nf6 {[%emt 0:00:10]} 2. d4 {[%emt 0:00:28]} d5 {[%emt 0:00:09]} 3. c4 {[%emt 0:00:16]} e6 {[%emt 0:00:10]} 4. g3 {[%emt 0:00:26]} Be7 {[%emt 0:00:14]} 5. Bg2 {[%emt 0:00:06]} O-O {[%emt 0:00:17]} 6. Qc2 {[%emt 0:02:13]} Nbd7 {[%emt 0:05:50]} 7. O-O {[%emt 0:00:30]} c6 {[%emt 0:07:47]} 8. Nbd2 {[%emt 0:01:12]} b6 {[%emt 0:01:32]} 9. e4 {[%emt 0:00:12]} dxe4 {[%emt 0:02:15]} 10. Nxe4 {[%emt 0:00:08]} Bb7 {[%emt 0:01:11]} 11. Rd1 {[%emt 0:03:34]} Nxe4 {[%emt 0:12:52]} 12. Qxe4 {[%emt 0:00:18]} Nf6 {[%emt 0:00:14]} 13. Qc2 {[%emt 0:00:23]} Qc7 {[%emt 0:01:20]} 14. Bf4 {[%emt 0:01:07]} Bd6 {[%emt 0:01:19]} 15. Bxd6 {[%emt 0:00:47]} Qxd6 {[%emt 0:00:28]} 16. c5 {[%emt 0:00:02]} Qc7 {[%emt 0:01:27]} 17. Rac1 {[%emt 0:01:47]} Rac8 {[%emt 0:04:20]} 18. Ne5 {[%emt 0:02:26]} b5 {[%emt 0:16:47] Weiß steht etwas besser.} 19. h4 {[%emt 0:02:37][%cal Bh2h4,Bh4h5][%mdl 32] Weiß steht deutlich aktiver.} Rcd8 {[%emt 0:06:55]} 20. Qe2 {[%emt 0:00:50]} Nd5 {[%emt 0:08:18]} 21. h5 {[%emt 0:02:51][%cal Oa2a4]} Rfe8 {[%emt 0:12:26]} 22. f4 {[%emt 0:10:00]} (22. h6 $16) 22... f6 $11 {[%emt 0:01:07]} 23. Nd3 {[%emt 0:03:01][%cal Be5d3,Bd3b4,Bb4c2][%mdl 32]} Bc8 {[%emt 0:04:31]} 24. Be4 {[%emt 0:02:15]} Ne7 {[%emt 0:01:29][%cal Oe7f5]} 25. Qf2 {[%emt 0:00:44]} Nf5 {[%emt 0:00:32]} 26. Nb4 {[%emt 0:00:37]} Bb7 {[%emt 0:02:01]} 27. Rd2 {[%emt 0:05:01]} a5 {[%emt 0:00:37]} 28. Nc2 {[%emt 0:00:05]} Qf7 {[%emt 0:02:11]} 29. Qf3 {[%emt 0:00:45]} Ne7 {[%emt 0:00:15]} 30. Re1 {[%emt 0:00:30][%cal Oa2a4]} f5 {[%emt 0:01:08]} 31. Bd3 {[%emt 0:00:54]} Nd5 {[%emt 0:00:05]} 32. a3 {[%emt 0:02:50]} Nf6 {[%emt 0:00:45]} 33. Rh2 $1 {[%emt 0:00:02]} Ng4 {[%emt 0:00:13]} 34. Rh4 {[%emt 0:00:18]} Nf6 {[%emt 0:02:28]} 35. Bf1 {[%emt 0:00:58][%cal Bd3f1,Bf1g2,Bg2f3][%mdl 32]} Rd5 {[%emt 0:03:11]} 36. Bg2 {[%emt 0:00:22]} Rdd8 {[%emt 0:00:41]} 37. h6 {[%emt 0:00:35]} g6 {[%emt 0:00:07]} 38. Qc3 {[%emt 0:00:09]} Qc7 {[%emt 0:00:26]} 39. Bf3 {[%emt 0:01:24]} g5 $2 {[%emt 0:00:22]} 40. Rh2 $18 {[%emt 0:00:16]} gxf4 {[%emt 0:01:04]} 41. gxf4 {[%emt 0:00:01]} (41. d5 $1 $18 {ist der präzise Gewinnweg.} Nxd5 (41... fxg3 $2 42. Rh3 $18) 42. Bxd5 cxd5 43. gxf4) 41... Kf7 $16 {[%emt 0:00:23]} 42. Rg2 {[%emt 0:00:25] Gegen Rg8 gerichtet.} Rg8 {[%emt 0:00:11] [#] Es drohte Rg7+} 43. Qe3 {[%emt 0:00:41]} Bc8 {[%emt 0:01:00]} 44. Qe5 {[%emt 0:01:30]} ({Besser ist} 44. Ree2 $16) 44... Rxg2+ {[%emt 0:00:08]} 45. Kxg2 {[%emt 0:01:20]} Rg8+ {[%emt 0:00:10] [#] Weiß behält die Zügel nun fest in der Hand.} ({Vorzuziehen ist} 45... Qxe5 $1 $14 46. fxe5 Rg8+ 47. Kf2 Nd5) 46. Kf2 $1 {[%emt 0:00:12] Manche mögen's heiß} Qe7 {[%emt 0:00:04]} 47. Ne3 $36 {[%emt 0:00:40][%cal Oe3f5][%mdl 2048] Und Nxf5! würde nun gewinnen. Weiss bestimmt, wo es lang geht.} (47. Bxc6 $2 Ng4+ 48. Kf1 Nxe5 $19) 47... Ng4+ $2 {[%emt 0:02:00][%mdl 8192]} (47... Qd7 $16 {ist zäher.} 48. Rh1 Qb7) 48. Bxg4 $18 {[%emt 0:01:20]} Qh4+ {[%emt 0:00:14]} 49. Ke2 {[%emt 0:00:08]} fxg4 {[%emt 0:00:37] Schwarz hat schwache schwarze Felder} 50. Qc7+ {[%emt 0:00:42]} (50. f5 $142 {Droht stark fxe6+.} exf5 51. Nxf5) 50... Kf6 {[%emt 0:00:40]} (50... Qe7 51. Qxc6 (51. Qxa5 Bd7 $16) 51... Bb7 52. Qxb5 Bf3+ 53. Kd3 g3) 51. Qxc6 {[%emt 0:00:36]} (51. Qxh7 $142 Rg6 52. Qh8+ Kf7 53. Qxc8) 51... Qh2+ $2 {[%emt 0:00:31]} (51... Kf7 52. Rg1 (52. Qxb5 g3 $16) 52... g3 (52... Qh2+ $2 53. Rg2 $18)) 52. Kd3 {[%emt 0:00:02] Schwarz muss nun Nd5+ beachten.} Qxb2 {[%emt 0:00:45]} 53. Nd5+ {[%emt 0:00:15]} Kg6 {[%emt 0:00:21]} 54. Ne7+ {[%emt 0:04:33]} Kf7 {[%emt 0:00:36]} 55. Nxg8 {[%emt 0:02:57] Weiss droht Qc7+ und Matt.} (55. Nxc8 Qb3+ 56. Ke2 (56. Kd2 Qb2+ 57. Kd1 Qxd4+ 58. Ke2 Qc4+ 59. Kd2 Qd4+ 60. Kc2 Qf2+ 61. Kd1 Qd4+ 62. Ke2 Qc4+ 63. Ke3 Qc3+ 64. Ke2 Qc4+ $11) 56... Qc4+ (56... Qc2+ 57. Kf1 $11) 57. Kd2 Qxd4+ 58. Ke2 Qc4+ 59. Kd2 Qd4+ 60. Kc2 Qf2+ 61. Kd1 Qd4+ 62. Kc2 (62. Ke2 Qc4+ 63. Kd2 Qd4+ $11) 62... Qf2+ 63. Kd1 Qd4+ 64. Ke2 Qc4+ 65. Ke3 Qc3+ 66. Ke2 Qc4+ $11) 55... Qb3+ {[%emt 0:00:11]} 56. Ke2 {[%emt 0:00:12][%cal Bd3e2,Be2f2,Bf2g3,Bg3h4,Bh4g5][%mdl 32] Weiss will mit Qc7+ Matt setzen.} Qc4+ {[%emt 0:00:13]} 57. Kf2 {[%emt 0:00:26] jetzt Qc7+ und aus.} Qxd4+ {[%emt 0:00:22]} 58. Kg3 {[%emt 0:02:33]} Qd3+ {[%emt 0:01:02]} 59. Kh4 {[%emt 0:00:30]} Bd7 {[%emt 0:00:46]} 60. Qd6 {[%emt 0:00:31]} (60. Qc7 $142 Qd2 61. Rg1 Qd4 62. c6 (62. Rxg4 Qf2+ 63. Kh5 Qh2+ 64. Kg5 Qd2 65. Nf6 Ke7 66. c6 Qd4 67. Ng8+ Kf7) 62... Kg6 63. Rxg4+ (63. Qxd7 Qf2+ 64. Kxg4 Qxg1+ 65. Kf3 Qh1+ 66. Kf2 Qh4+ 67. Kf3 Qh1+ 68. Kf2 Qh4+ 69. Kf3 Qh1+ $18) 63... Kf5 64. Rg5+ (64. cxd7 Qf2+ 65. Kh3 Qf3+ 66. Kh2 Qf2+ 67. Kh3 Qf3+ 68. Kh2 Qf2+ 69. Rg2 Qh4+ 70. Kg1 Qe1+ 71. Kh2 Qh4+ 72. Kg1 Qe1+ 73. Kh2 Qh4+ $11) 64... Ke4 65. cxd7 (65. Qxd7 e5 $18) (65. Qe5+ Qxe5 66. Rxe5+ Kxf4 67. cxd7 Kxe5 68. d8=Q Ke4 69. Qd2 Kf3)) 60... Qh3+ {[%emt 0:00:30]} 61. Kg5 {[%emt 0:00:02] Gewichteter Fehlerwert: Weiß=0.32/Schwarz=0.65.  Verlustzug:     	---       	Schwarz=2     Gewinn verpasst:   	Weiß=1     	---        Fehler:       	Weiß=4     	Schwarz=3     Ungenau:       	Weiß=1     	Schwarz=4     OK:         	Weiß=14    	Schwarz=13    Bester:       	Weiß=2     	Schwarz=2     Stark:        	Weiß=1     	---} 1-0

[Event "Bijnor Open 2024"]
[Site "Bijnor"]
[Date "2024.03.21"]
[Round "9.6"]
[White "Singh, Arvinder Preet"]
[Black "Anant Panwar"]
[Result "1-0"]
[ECO "B43"]
[WhiteElo "2030"]
[BlackElo "1591"]
[Annotator "RC"]
[PlyCount "45"]
[EventDate "2024.03.17"]
[EventCountry "IND"]
[SourceTitle "playchess.com"]
[Source "ChessBase"]
[SourceQuality "1"]
[TimeControl "5400+30"]

1. e4 {[%emt 0:00:02]} c5 {[%emt 0:04:15]} 2. Nf3 {[%emt 0:00:09]} e6 {[%emt 0:00:34]} 3. d4 {[%emt 0:00:14]} cxd4 {[%emt 0:00:30]} 4. Nxd4 {[%emt 0:00:04]} a6 {[%emt 0:00:05]} 5. a3 {[%emt 0:00:06]} Nf6 {[%emt 0:01:03]} 6. Nc3 {[%emt 0:00:05]} Qc7 {[%emt 0:00:19]} 7. f4 {[%emt 0:00:12]} e5 {[%emt 0:12:38]} 8. fxe5 {[%emt 0:07:15]} Qxe5 {[%emt 0:00:30]} 9. Nf3 {[%emt 0:00:15]} Qc5 {[%emt 0:15:43]} 10. e5 {[%emt 0:06:19]} Ng4 {[%emt 0:12:10]} 11. Ne4 {[%emt 0:00:26]} Qc7 {[%emt 0:04:42]} 12. Nd6+ {[%emt 0:00:57]} Bxd6 {[%emt 0:00:57]} 13. exd6 {[%emt 0:00:03]} Qd8 {[%emt 0:02:04]} 14. Qe2+ {[%emt 0:17:04]} Kf8 {[%emt 0:02:12]} 15. Bg5 {[%emt 0:05:34]} f6 {[%emt 0:02:47]} 16. h3 {[%emt 0:01:25]} fxg5 {[%emt 0:11:09]} 17. hxg4 {[%emt 0:00:25]} Nc6 {[%emt 0:05:56]} 18. O-O-O {[%emt 0:00:10]} b5 {[%emt 0:00:53]} 19. Qe3 {[%emt 0:02:17]} g6 {[%emt 0:07:23]} 20. Qc3 {[%emt 0:01:52]} Kg8 {[%emt 0:01:24]} 21. Bd3 {[%emt 0:00:21]} Bb7 {[%emt 0:03:11]} 22. Bxg6 {[%emt 0:01:51]} h6 {[%emt 0:02:15]} 23. Qb3+ {[%emt 0:00:09]} 1-0

[Event "Bijnor Open 2024"]
[Site "Bijnor"]
[Date "2024.03.21"]
[Round "9.7"]
[White "Shaurya Chaudhary"]
[Black "Ram Prakash, R."]
[Result "0-1"]
[ECO "D35"]
[WhiteElo "1731"]
[BlackElo "2191"]
[Annotator "RC"]
[PlyCount "74"]
[EventDate "2024.03.17"]
[EventCountry "IND"]
[SourceTitle "playchess.com"]
[Source "ChessBase"]
[SourceQuality "1"]
[TimeControl "5400+30"]

1. d4 {[%emt 0:00:41]} d5 {[%emt 0:01:37]} 2. c4 {[%emt 0:00:14]} e6 {[%emt 0:01:22]} 3. Nc3 {[%emt 0:00:10]} Be7 {[%emt 0:00:14]} 4. cxd5 {[%emt 0:00:11]} exd5 {[%emt 0:00:03]} 5. Bf4 {[%emt 0:00:14]} Nf6 {[%emt 0:00:35]} 6. e3 {[%emt 0:00:04]} c6 {[%emt 0:01:44]} 7. Bd3 {[%emt 0:03:14]} Nbd7 {[%emt 0:01:34]} 8. Qc2 {[%emt 0:07:51]} Nb6 {[%emt 0:02:30]} 9. Nf3 {[%emt 0:06:54]} a5 {[%emt 0:09:16]} 10. O-O {[%emt 0:05:24]} Bg4 {[%emt 0:09:51]} 11. Ne5 {[%emt 0:02:27]} Bh5 {[%emt 0:05:02]} 12. Ne2 {[%emt 0:06:30]} Bg6 {[%emt 0:01:07]} 13. Ng3 {[%emt 0:00:17]} Bxd3 {[%emt 0:05:12]} 14. Qxd3 {[%emt 0:00:53]} O-O {[%emt 0:03:26]} 15. Nf5 {[%emt 0:01:04]} Nh5 {[%emt 0:01:03]} 16. Nxe7+ {[%emt 0:02:10]} Qxe7 {[%emt 0:00:07]} 17. Qb3 {[%emt 0:00:19]} Nc8 {[%emt 0:05:50]} 18. Nd3 {[%emt 0:05:03]} Nxf4 {[%emt 0:00:06]} 19. Nxf4 {[%emt 0:00:02]} Nd6 {[%emt 0:00:14]} 20. Nd3 {[%emt 0:00:16]} Ne4 {[%emt 0:01:16]} 21. Rfc1 {[%emt 0:03:25]} Rfe8 {[%emt 0:01:38]} 22. Nc5 {[%emt 0:00:49]} Nd6 {[%emt 0:00:26]} 23. Qc3 {[%emt 0:08:53]} g6 {[%emt 0:01:24]} 24. Rab1 {[%emt 0:01:43]} h5 {[%emt 0:03:11]} 25. a4 {[%emt 0:06:58]} Rec8 {[%emt 0:04:42]} 26. b4 {[%emt 0:04:52]} b6 {[%emt 0:00:55]} 27. Nd3 {[%emt 0:01:22]} Nc4 {[%emt 0:00:38]} 28. bxa5 {[%emt 0:00:07]} Rxa5 {[%emt 0:00:31]} 29. Rxb6 {[%emt 0:00:43]} Rxa4 {[%emt 0:00:34]} 30. Rb4 {[%emt 0:00:41]} Ra2 {[%emt 0:01:38]} 31. Nc5 {[%emt 0:02:39]} Rca8 {[%emt 0:01:11]} 32. Rc2 {[%emt 0:05:57]} Rxc2 {[%emt 0:00:35]} 33. Qxc2 {[%emt 0:00:15]} Ra1+ {[%emt 0:00:06]} 34. Rb1 {[%emt 0:00:19]} Na3 {[%emt 0:00:07]} 35. Rxa1 {[%emt 0:00:12]} Nxc2 {[%emt 0:00:05]} 36. Ra8+ {[%emt 0:00:19]} Kg7 {[%emt 0:00:12]} 37. Ra6 {[%emt 0:00:09]} Nxd4 {[%emt 0:01:09]} 0-1

[Event "Bijnor Open 2024"]
[Site "Bijnor"]
[Date "2024.03.21"]
[Round "9.8"]
[White "Shivam Chaudhary"]
[Black "Mishra Kamad"]
[Result "0-1"]
[ECO "B03"]
[WhiteElo "1701"]
[BlackElo "1812"]
[Annotator "NA RC"]
[PlyCount "122"]
[EventDate "2024.03.17"]
[EventCountry "IND"]
[SourceTitle "playchess.com"]
[Source "ChessBase"]
[SourceQuality "1"]
[TimeControl "5400+30"]

1. e4 {[%emt 0:00:04]} Nf6 {[%emt 0:02:50]} 2. e5 {[%emt 0:01:50]} Nd5 {[%emt 0:00:15]} 3. d4 {[%emt 0:00:07]} d6 {[%emt 0:00:03]} 4. c4 {[%emt 0:01:22]} Nb6 {[%emt 0:00:23]} 5. f4 {[%emt 0:00:23]} dxe5 {[%emt 0:00:10]} 6. fxe5 {[%emt 0:00:05]} Nc6 {[%emt 0:00:11]} 7. Be3 {[%emt 0:00:32]} Bf5 {[%emt 0:00:34]} 8. Nc3 {[%emt 0:01:19]} e6 {[%emt 0:00:10]} 9. Nf3 {[%emt 0:02:58]} Bg4 {[%emt 0:11:46]} 10. Qd2 {[%emt 0:02:30]} Bb4 {[%emt 0:01:53]} 11. a3 {[%emt 0:03:49] B03: Alekhine's Defence: Four Pawns Attack.} Bxc3 {[%emt 0:00:35]} 12. Qxc3 {[%emt 0:00:54]} Bxf3 {[%emt 0:11:54]} 13. gxf3 {[%emt 0:00:09]} Qh4+ {[%emt 0:00:16]} 14. Bf2 {[%emt 0:02:03]} Qf4 {[%emt 0:06:35]} (14... Qh6 $1 $14) 15. Be2 {[%emt 0:20:02]} O-O-O {[%emt 0:12:31]} 16. Be3 {[%emt 0:01:13]} Qh4+ {[%emt 0:03:34]} 17. Bf2 {[%emt 0:00:13]} Qh3 {[%emt 0:04:52]} 18. O-O-O {[%emt 0:04:56]} Qg2 {[%emt 0:02:21]} (18... Kb8 $11) 19. Qe1 {[%emt 0:08:29]} Qg5+ {[%emt 0:05:29]} 20. Kb1 {[%emt 0:04:23]} Rd7 {[%emt 0:05:15]} 21. h4 {[%emt 0:13:07]} Qf5+ {[%emt 0:08:57]} 22. Ka2 {[%emt 0:01:36]} Na4 {[%emt 0:04:53]} 23. Bd3 {[%emt 0:05:51]} Qxf3 {[%emt 0:07:38]} 24. Be4 {[%emt 0:00:07]} Qf4 {[%emt 0:00:53]} 25. Bg3 {[%emt 0:02:08]} Qg4 {[%emt 0:01:43]} 26. d5 $2 {[%emt 0:02:59]} (26. Bxc6 $16 {keeps the pressure on.} bxc6 27. Bf2) 26... Nc5 {[%emt 0:03:24]} 27. dxc6 {[%emt 0:03:57]} Rxd1 {[%emt 0:00:34]} 28. cxb7+ {[%emt 0:00:12]} Kb8 {[%emt 0:00:11]} 29. Qxd1 {[%emt 0:00:15]} Qxe4 {[%emt 0:02:09]} 30. Rf1 {[%emt 0:03:52]} Qxc4+ {[%emt 0:00:39]} 31. Kb1 {[%emt 0:00:03]} Ne4 {[%emt 0:01:30]} ({Nicht} 31... Kxb7 32. Rf4 Qa6 (32... Ne4 $2 {too greedy.} 33. Qf3 $18) 33. Rxf7 $11) ({Schlechter ist} 31... Nxb7 32. Rxf7 Rd8 33. Qc2 Qxc2+ 34. Kxc2 $11) 32. Rf4 {[%emt 0:02:31]} Qd5 {[%emt 0:00:38]} (32... f5 $19 33. Rf3 (33. exf6 $2 gxf6 34. Rg4 f5 $19) 33... Kxb7) 33. Qxd5 {[%emt 0:00:30]} exd5 {[%emt 0:00:02]} 34. Be1 {[%emt 0:00:09]} f6 {[%emt 0:00:25]} ({Not} 34... Kxb7 35. Rxf7 Re8 36. Ba5 $11) 35. exf6 {[%emt 0:01:30]} gxf6 {[%emt 0:00:26]} (35... Kxb7 $2 {perishes.} 36. fxg7 Rg8 37. Rg4 $16) 36. Kc2 {[%emt 0:02:44]} Kxb7 {[%emt 0:00:14]} 37. Kd3 {[%emt 0:00:09]} (37. Rg4 {keeps fighting.}) 37... Kc6 {[%emt 0:00:36]} 38. Kd4 {[%emt 0:00:13]} Kd6 {[%emt 0:00:23]} 39. b4 {[%emt 0:00:54]} c6 {[%emt 0:00:55]} 40. Rg4 {[%emt 0:01:09]} Re8 {[%emt 0:00:51]} 41. h5 {[%emt 0:01:06]} Ng5 {[%emt 0:00:51]} 42. Bg3+ {[%emt 0:00:18]} Kd7 {[%emt 0:00:11]} 43. b5 {[%emt 0:03:12]} Re4+ {[%emt 0:00:52]} 44. Rxe4 {[%emt 0:00:03]} dxe4 {[%emt 0:00:45]} 45. bxc6+ {[%emt 0:00:21]} Kxc6 {[%emt 0:00:01]} 46. h6 {[%emt 0:00:19]} a6 {[%emt 0:00:37]} 47. Bf4 {[%emt 0:01:02]} Ne6+ {[%emt 0:00:50]} 48. Kxe4 {[%emt 0:00:07]} Nxf4 {[%emt 0:00:02]} 49. Kxf4 {[%emt 0:00:16]} Kd6 {[%emt 0:00:06]} 50. a4 {[%emt 0:04:17]} Ke6 {[%emt 0:00:17]} 51. Ke4 {[%emt 0:00:12]} f5+ {[%emt 0:00:09]} 52. Kd4 {[%emt 0:00:08]} Kf6 {[%emt 0:00:40]} 53. a5 {[%emt 0:00:22]} Kg5 {[%emt 0:00:37]} 54. Ke5 {[%emt 0:01:01]} f4 {[%emt 0:00:11]} 55. Ke4 {[%emt 0:02:33]} Kg4 {[%emt 0:00:04]} 56. Ke5 {[%emt 0:00:12]} f3 {[%emt 0:00:27]} 57. Kf6 {[%emt 0:00:01]} f2 {[%emt 0:00:07]} 58. Kg7 {[%emt 0:00:01]} f1=Q {[%emt 0:00:07]} 59. Kxh7 {[%emt 0:00:03]} Qf7+ {[%emt 0:00:10]} 60. Kh8 {[%emt 0:00:02]} Kg5 {[%emt 0:00:18]} 61. h7 {[%emt 0:00:09]} Qf8# {[%emt 0:00:12]} 0-1

[Event "Bijnor Open 2024"]
[Site "Bijnor"]
[Date "2024.03.21"]
[Round "9.9"]
[White "Royal, Shreyas"]
[Black "Srivardhan Reddy Devareddy"]
[Result "1-0"]
[ECO "A11"]
[WhiteElo "2457"]
[BlackElo "1662"]
[Annotator "TA"]
[PlyCount "35"]
[EventDate "2024.03.17"]
[EventCountry "IND"]
[SourceTitle "playchess.com"]
[Source "ChessBase"]
[SourceQuality "1"]
[TimeControl "5400+30"]

{[%evp 9,35,0,-1,-27,-16,-26,0,2,42,18,41,28,22,30,22,25,92,72,267,255,479,477,465,477,475,428,443,433]} 1. c4 {[%emt 0:00:39]} c6 {[%emt 0:08:39]} 2. g3 {[%emt 0:00:08]} d5 {[%emt 0:00:04]} 3. cxd5 {[%emt 0:00:46]} cxd5 {[%emt 0:00:22]} 4. Bg2 {[%emt 0:00:04]} Nf6 {[%emt 0:00:08]} 5. Nf3 {[%emt 0:00:28]} Nc6 {[%emt 0:01:59]} 6. d3 {[%emt 0:00:14]} h6 {[%emt 0:03:17]} 7. O-O {[%emt 0:00:43][%cal Oe2e4]} Bf5 {[%emt 0:00:05]} 8. Nc3 {[%emt 0:04:30] Die Stellung ist ausgeglichen.} e6 {[%emt 0:01:48]} 9. Qa4 {[%emt 0:04:41]} Be7 {[%emt 0:00:36]} 10. Nd4 {[%emt 0:03:27]} O-O {[%emt 0:04:07]} 11. Nxc6 {[%emt 0:13:44]} bxc6 {[%emt 0:00:06]} 12. Qxc6 {[%emt 0:00:04]} Qa5 {[%emt 0:06:35]} (12... Rb8 $11) 13. Bd2 {[%emt 0:17:19][%cal Oc3d5,Bc1d2,Bd2a5,Ba5c3][%mdl 32] [#] Nxd5! ist eine echte Drohung.} Rfc8 $2 {[%emt 0:15:56] Führt Schwarz ins Verderben.} (13... Rac8 $16 {war nötig.} 14. Qb7 Bb4) 14. Nxd5 $1 $18 {[%emt 0:02:01]} exd5 {[%emt 0:05:44]} (14... Qd8) 15. Qxc8+ {[%emt 0:00:37] Weiß steht klar auf Gewinn.} (15. Bxa5 $2 {geht unter.} Rxc6 16. Rfc1 Ra6 $19) 15... Rxc8 {[%emt 0:00:18][%cal Ba8c8,Bc8c2,Bc2e2][%mdl 32]} 16. Bxa5 {[%emt 0:00:02]} Rc2 {[%emt 0:00:07]} 17. Bc3 {[%emt 0:00:39]} Rxe2 {[%emt 0:00:19]} 18. Rfe1 {[%emt 0:00:16] Gewichteter Fehlerwert: Weiß=0.15 (sehr präzise) /Schwarz=0.63.  Verlustzug:     	---       	Schwarz=1     Fehler:       	---       	Schwarz=2     Ungenau:       	---       	Schwarz=2     OK:         	Weiß=3     	Schwarz=4     Bester:       	Weiß=1     	---        Stark:        	Weiß=1     	---} 1-0

[Event "Bijnor Open 2024"]
[Site "Bijnor"]
[Date "2024.03.21"]
[Round "9.10"]
[White "Shubh Singh Saini"]
[Black "Sparsh Yadav"]
[Result "1/2-1/2"]
[ECO "C44"]
[WhiteElo "1683"]
[BlackElo "1775"]
[Annotator "NA RC"]
[PlyCount "43"]
[EventDate "2024.03.17"]
[EventCountry "IND"]
[SourceTitle "playchess.com"]
[Source "ChessBase"]
[SourceQuality "1"]
[TimeControl "5400+30"]

1. e4 {[%emt 0:00:14]} e5 {[%emt 0:00:29]} 2. Nf3 {[%emt 0:00:14]} Nc6 {[%emt 0:00:13]} 3. d3 {[%emt 0:00:14]} d5 {[%emt 0:00:28]} 4. Nbd2 {[%emt 0:05:34]} Bc5 {[%emt 0:00:23]} 5. g3 {[%emt 0:00:21]} Bg4 {[%emt 0:00:35]} 6. Bg2 {[%emt 0:02:26]} Nge7 {[%emt 0:01:01]} 7. h3 {[%emt 0:01:58]} Be6 {[%emt 0:00:06]} 8. O-O {[%emt 0:00:48]} f6 {[%emt 0:00:24]} 9. Qe2 {[%emt 0:13:39]} Qd7 {[%emt 0:00:20]} 10. Kh2 {[%emt 0:00:36]} O-O-O {[%emt 0:01:45]} 11. a3 {[%emt 0:04:25]} d4 {[%emt 0:01:35]} 12. b4 {[%emt 0:01:04]} Bb6 {[%emt 0:00:21]} 13. Nb3 {[%emt 0:04:47]} Qd6 {[%emt 0:00:50]} 14. Bd2 {[%emt 0:01:55]} a6 {[%emt 0:00:11]} 15. Rfb1 {[%emt 0:02:16]} g5 {[%emt 0:00:18]} 16. Qe1 {[%emt 0:01:49]} h5 {[%emt 0:01:25]} 17. Ng1 {[%emt 0:01:29]} Ng6 {[%emt 0:00:18]} 18. a4 {[%emt 0:00:52]} Nb8 {[%emt 0:05:13]} 19. b5 {[%emt 0:01:21]} axb5 {[%emt 0:01:05]} 20. axb5 {[%emt 0:00:19]} h4 {[%emt 0:00:38]} 21. g4 {[%emt 0:02:55]} Bxb3 {[%emt 1:23:22]} 22. Qd1 {[%emt 0:52:14]} 1/2-1/2